Cogmind - Beta 11.1 @@@ ROGUE MODE // 2022.10.10 @ 20:54:11 Player: W_W Result: Destroyed self with Rocket Launcher Performance ------------- Evolutions (0) 0 Regions Visited (2) 400 Robots Destroyed (43) 215 Value Destroyed (518) 518 Prototype IDs (2) 40 Alien Tech Used (0) 0 Bonus (0) 0 TOTAL SCORE: 1173 Bonus ------- None Cogmind --------- Core Integrity 0/250 Matter 189/300 Energy 125/125 System Corruption 0% Temperature Cool (0) Movement Rolling (135) Ox3 Location -10/Mines Parts ------- > --- POWER (1) -------- Light Ion Engine > --- PROPULSION (2) --- Wheel Compact Wheel > --- UTILITY (2) ------ Huge Storage Unit Hardened Medium Armor Plating > --- WEAPON (2) ------- Heavy Assault Rifle Rocket Launcher > --- INVENTORY (25) --- Cryofiber Web Heat Sink High-capacity Storage Unit Medium Matter Pod (100) Weight Redist. System Advanced Visual Processing Unit Sensor Array Signal Interpreter Transport Network Coupler Targeting Computer Target Analyzer Insulated Plating Shock Rifle Heavy Assault Rifle Bore Cannon Grenade Launcher Rocket Launcher Rocket Launcher Plasma Cutter Peak State ------------ > --- POWER ------------ Ion Engine > --- PROPULSION ------- Wheel Compact Wheel > --- UTILITY ---------- Huge Storage Unit Hardened Medium Armor Plating > --- WEAPON ----------- Heavy Assault Rifle Rocket Launcher > --- INVENTORY -------- Cryofiber Web Heat Sink High-capacity Storage Unit Medium Matter Pod Weight Redist. System Advanced Visual Processing Unit Sensor Array Signal Interpreter Transport Network Coupler Targeting Computer Target Analyzer Insulated Plating Shock Rifle Heavy Assault Rifle Bore Cannon Grenade Launcher Rocket Launcher Rocket Launcher Plasma Cutter [Rating: 14] Favorites ----------- Power Ion Engine Engine Ion Engine Propulsion Wheel Wheel Wheel Utility Huge Storage Unit Device Shield Generator Storage Huge Storage Unit Processor Visual Processing Unit Protection Hardened Medium Armor Plating Weapon Heavy Assault Rifle Ballistic Gun Heavy Assault Rifle Launcher Rocket Launcher Build | -11 -10 -10 ------- Run | Scr Mat Min Slots Evolved . | . . . Power . | . . . Propulsion . | . . . Utility . | . . . Weapon . | . . . Parts Attached 33 | 8 13 12 Power 4 | 1 1 2 Engine 4 | 1 1 2 Core . | . . . Reactor . | . . . Propulsion 7 | 2 3 2 Treads . | . . . Leg . | . . . Wheel 7 | 2 3 2 Hover . | . . . Flight . | . . . Utility 9 | 3 4 2 Device 3 | 1 2 . Storage 4 | 2 2 . Processor 1 | . . 1 Hackware . | . . . Protection 1 | . . 1 Artifact . | . . . Weapon 13 | 2 5 6 Energy Gun . | . . . Energy Cannon . | . . . Ballistic Gun 8 | 2 4 2 Ballistic Cannon . | . . . Launcher 5 | . 1 4 Special Weapon . | . . . Impact Weapon . | . . . Slashing Weapon . | . . . Piercing Weapon . | . . . Special Melee Weapon . | . . . Unidentified Prototypes . | . . . Parts Lost 9 | . 1 8 Power 2 | . . 2 Propulsion 3 | . 1 2 Utility 1 | . . 1 Weapon 3 | . . 3 Highest Loss Streak 6 | . 1 6 To Critical Strikes . | . . . Average Slot Usage (%) 92 | . 99 83 Engine 13 | . 14 13 Wheel 24 | . 27 18 Device 8 | . 13 1 Storage 14 | . 14 14 Protection 1 | . . 4 Ballistic Gun 23 | . 27 16 Launcher 4 | . . 10 Naked Turns . | . . . Heaviest Build 100 | 17 93 100 Greatest Support 26 | 20 20 26 Greatest Overweight (x) 9 | . 9 9 Average Overweight (x) 3 | . 2 6 Largest Inventory Capacity 25 | 8 25 25 Average Capacity 20 | 7 18 25 Most Carried 20 | 8 19 20 Average Carried 14 | 6 15 17 Final Capacity 25 | 8 25 25 Final Carried 19 | 8 19 19 Class Distribution -------------------- 100% | Mutant Dominant Class ---------------- Mutant | -10/Materials Mutant | -10/Mines Resources | -11 -10 -10 ----------- Run | Scr Mat Min Matter Collected 1094 | 424 395 275 Remotely . | . . . Salvage Created 913 | 292 405 216 Parts 98 | 33 42 23 Haulers Intercepted 1 | . 1 . Recyclers Shooed 1 | . . 1 Parts Field Recycled . | . . . Retrieved Matter . | . . . Parts Self-Destructed . | . . . Prevented . | . . . Kills | -11 -10 -10 ------- Run | Scr Mat Min Combat Hostiles Destroyed 23 | . 12 11 Guns 11 | . 10 1 AOE 12 | . 2 10 Classes Destroyed 11 | 3 6 2 Worker 6 | 2 1 3 Builder 1 | . 1 . Tunneler 10 | 9 . 1 Hauler 1 | . 1 . Recycler 2 | 1 . 1 Operator 1 | . 1 . Watcher 3 | . 3 . Swarmer 14 | . 8 6 Grunt 4 | . 4 . Demolisher 1 | . . 1 Assembled 4 | . . 4 Best Kill Streak 5 | 5 5 5 Combat Bots Only 5 | . 4 5 Max Kills in Single Turn 2 | 1 2 2 Gunslinging . | . . . Exploded 2 | . 1 2 Melee . | . . . Uniques/NPCs Destroyed . | . . . Combat | -11 -10 -10 -------- Run | Scr Mat Min Damage Taken 1064 | . 300 764 Core 256 | . 66 190 Absorbed by Shields 110 | . 87 23 Regen/Repaired (Parts) 9 | . 9 . Core Remaining (%) 100 | 100 . . Volleys Fired 98 | 24 45 29 Largest 2 | 2 2 2 Hottest 66 | 40 46 66 Shots Fired 180 | 48 85 47 Gun 160 | 48 83 29 Cannon . | . . . Launcher 20 | . 2 18 Special . | . . . Kinetic 160 | 48 83 29 Thermal . | . . . Explosive 20 | . 2 18 Electromagnetic . | . . . Robot Hit Streak 11 | 11 8 6 Robot Miss Streak 6 | 6 6 3 Penetration Max . | . . . Secondary Targets 3 | . 3 . Max Gunslinging Chain 1 | . 1 . Shots Hit Robots 84 | 27 37 20 Core Hits 54 | 12 19 23 Critical Kills . | . . . Critical Parts Destroyed . | . . . Critical Strikes . | . . . Melee Attacks . | . . . Impact . | . . . Slashing . | . . . Piercing . | . . . Sneak Attacks . | . . . Combat Hostiles . | . . . Follow-up Attacks . | . . . Damage Inflicted 2055 | 341 762 952 Guns 1160 | 341 582 237 Cannons . | . . . Explosions 881 | . 166 715 Melee . | . . . Ramming 14 | . 14 . Kinetic 1160 | 341 582 237 Thermal . | . . . Explosive 881 | . 166 715 Electromagnetic . | . . . Impact . | . . . Slashing . | . . . Piercing . | . . . Highest Corruption . | . . . Average Corruption . | . . . Corruption Purged . | . . . Corruption Blocked . | . . . Overload Shots . | . . . Overflow Damage 60 | . . 60 Projectiles . | . . . Explosions 60 | . . 60 Melee . | . . . Knockbacks . | . . . Impact . | . . . Kinetic . | . . . Secondary . | . . . Self-Inflicted Damage 219 | . 52 167 Shots 8 | . 1 7 Rammed 3 | . 3 . Targets Rammed 3 | . 3 . Kicked . | . . . Crushed . | . . . Highest Temperature 12 | . . 12 Average Temperature 5 | . . 5 Received Heat Transfer 64 | . 64 . Siege Activations . | . . . Robots Corrupted . | . . . Combat Hostiles . | . . . Parts Fried . | . . . Impact Corruptions . | . . . Robots Melted . | . . . Combat Hostiles . | . . . Parts Melted . | . . . Heat Transferred . | . . . Parts Sabotaged . | . . . Parts Stolen . | . . . Parts Stripped . | . . . Power Chain Reactions . | . . . Missiles Intercepted . | . . . Alert | -11 -10 -10 ------- Run | Scr Mat Min Peak Influence 246 | 60 246 239 Initial 39 | . 39 . Average 82 | 33 87 90 Maximum Alert Level 1 | . 1 1 Low Security (%) 86 | 100 84 84 Level 1 13 | . 15 15 Level 2 . | . . . Level 3 . | . . . Level 4 . | . . . Level 5 . | . . . High Security . | . . . Max Security . | . . . Squads Dispatched 3 | . 2 1 Investigation 2 | . 1 1 Extermination . | . . . Reinforcement 1 | . 1 . Assault . | . . . Garrison . | . . . Intercept . | . . . Searches Triggered . | . . . Construction Impeded . | . . . Haulers Reinforced . | . . . Active Scanning Responses . | . . . Cargo Convoy Interrupts . | . . . Stealth | -11 -10 -10 --------- Run | Scr Mat Min Distress Signals 1 | . 1 . Communications Jammed . | . . . Distress Signals . | . . . Times Spotted 48 | . 19 29 Peak Tracking Total 10 | . 5 10 Tactical Retreats 1 | . 1 . Traps | -11 -10 -10 ------- Run | Scr Mat Min Traps Triggered 2 | . 2 . Indirectly . | . . . Trap Hack Attempts . | . . . Triggered . | . . . Disarmed . | . . . Reprogrammed . | . . . Reused . | . . . Traps Extracted . | . . . Installed . | . . . Triggered . | . . . Machines | -11 -10 -10 ---------- Run | Scr Mat Min Machines Disabled 3 | . 2 1 Max in Single Turn 2 | . 2 1 Machines Sabotaged . | . . . Garrisons Compromised . | . . . Overloaded Fab Kills . | . . . Hacking | -11 -10 -10 --------- Run | Scr Mat Min Machines Accessed 12 | . 11 1 Terminals 8 | . 8 . Fabricators . | . . . Repair Stations 1 | . 1 . Recycling Units 2 | . 2 . Scanalyzers . | . . . Garrison Access . | . . . Total Hacks 47 | . 46 1 Successful 33 | . 32 1 Failed 14 | . 14 . Catastrophic 1 | . 1 . Database Lockouts . | . . . Manual 38 | . 38 . Terminals 39 | . 39 . Fabricators . | . . . Repair Stations 2 | . 2 . Recycling Units 5 | . 5 . Scanalyzers . | . . . Garrison Access . | . . . Terminal Hacks 12 | . 11 1 Prototype ID Bank 1 | . 1 . Open Door 1 | . . 1 Branch Access Points 1 | . 1 . Terminal Index 1 | . 1 . Alert Level 1 | . 1 . Unreport Threat 4 | . 4 . Locate Traps 1 | . 1 . Investigation Status 1 | . 1 . Zone Layout 1 | . 1 . Fabricator Hacks . | . . . Repair Station Hacks 2 | . 2 . Scan Component 1 | . 1 . Repair 1 | . 1 . Recycling Unit Hacks 1 | . 1 . Report Inventory 1 | . 1 . Scanalyzer . | . . . Garrison Access Hacks . | . . . Unauthorized Hacks 18 | . 18 . Terminals 14 | . 14 . Track 4 | . 4 . Assimilate 3 | . 3 . Botnet 7 | . 7 . Fabricators . | . . . Repair Stations . | . . . Recycling Units 4 | . 4 . Monitor 2 | . 2 . Mask 2 | . 2 . Scanalyzers . | . . . Garrison Access . | . . . Data Cores Recovered 1 | . 1 . Used 1 | . 1 . Hacking Detections 11 | . 11 . Full Trace Events . | . . . Feedback Events . | . . . Feedback Blocked . | . . . Robot Schematics Acquired . | . . . Robots Built . | . . . Authchips . | . . . Time . | . . . Total Robot Build Rating . | . . . Part Schematics Acquired . | . . . Parts Built . | . . . Authchips . | . . . Time . | . . . Total Part Build Rating . | . . . Parts Repaired 1 | . 1 . Time 32 | . 32 . Parts Recycled . | . . . Recycled Matter . | . . . Retrieved Matter . | . . . Retrieved Components . | . . . Parts Scanalyzed . | . . . Part Schematics Acquired . | . . . Parts Damaged . | . . . Bothacking | -11 -10 -10 ------------ Run | Scr Mat Min Used RIF Installer . | . . . Robots Hacked . | . . . Non-combat . | . . . Combat . | . . . Robot Hacks Applied . | . . . Relay Couplers Released . | . . . Fabnet Peak Effective % . | . . . Robots Rewired . | . . . Allies Hacked . | . . . Hacks Repelled . | . . . Allies | -11 -10 -10 -------- Run | Scr Mat Min Total Allies . | . . . Largest Group . | . . . Highest-Rated Group . | . . . Highest-Rated Ally . | . . . Total Orders . | . . . Ally Attacks . | . . . Total Damage . | . . . Kills . | . . . Allies Corrupted . | . . . Allies Melted . | . . . Intel | -11 -10 -10 ------- Run | Scr Mat Min Robot Analysis Total . | . . . Derelict Logs Recovered . | . . . Drone Launches . | . . . Drone Recoveries . | . . . Exploration | -11 -10 -10 ------------- Run | Scr Mat Min Turns Passed 2508 | 278 1274 956 Spaces Moved 1369 | 121 780 468 Core 1 | 1 . . Treads . | . . . Legs . | . . . Wheels 1368 | 120 780 468 Hover . | . . . Flight . | . . . Fastest Speed 50 | 50 80 135 Average Speed 132 | 79 114 176 Slowest Speed 215 | 80 215 215 Overloaded Moves . | . . . Propulsion Burnouts . | . . . Robots Hopped . | . . . Cave-ins Triggered . | . . . Exploration Rate (%) 58 | 5 97 74 Regions Visited 2 Branch Regions 1 Pre-discovered Areas . | . . . Known Exits Taken 1 | . 1 . Unknown Exits Taken 1 | 1 . . Scrap Searched 1 | . . 1 Spaces Dug 32 | . . 32 Terrain Destroyed 127 | . 13 114 Melee . | . . . Projectile . | . . . AOE 127 | . 13 114 Terrain Rammed . | . . . Walls Destroyed . | . . . Machines Disabled . | . . . Actions | -11 -10 -10 --------- Run | Scr Mat Min Total 1888 | 252 1083 553 Wait 323 | 84 205 34 Move 1367 | 120 779 468 Hop . | . . . Pick Up 40 | 11 22 7 Fast Attach 15 | 8 5 2 Attach 10 | . 1 9 Detach 5 | 1 1 3 Swap 8 | . 7 1 Drop 19 | 4 15 . Fire 98 | 24 45 29 Melee . | . . . Ram 3 | . 3 . Kick . | . . . Crush . | . . . Escape Stasis . | . . . Rewire . | . . . Trap . | . . . Miscellaneous . | . . . Route ------- -11/Scrapyard -10/Materials (discovered 4 exits: [*Mat x3] / *Min) -10/Mines (discovered 2 exits: [*Mat x2]) History --------- Turn | Location | Event 12 | -11/Scrapyard | Discovered new exit (range 16) 279 | -11/Scrapyard | Entered Materials 377 | -10/Materials | Build established: Mutant 578 | -10/Materials | Identified exit to Mines 672 | -10/Materials | Discovered new exit (range 8) 811 | -10/Materials | Repaired Shield Generator 976 | -10/Materials | Discovered new exit (range 16) 1315 | -10/Materials | Discovered new exit (range 16) 1553 | -10/Materials | Entered Mines 1631 | -10/Mines | Assembled infested the area 1636 | -10/Mines | Assisted by a Guerilla fighting off Assembled 1663 | -10/Mines | Core integrity fell below 50% 1689 | -10/Mines | Core integrity fell below 20% 1704 | -10/Mines | Lost 6 parts (1p2n1u2w) 1793 | -10/Mines | Discovered new exit (range 6) 1793 | -10/Mines | Discovered new exit (range 10) 2095 | -10/Mines | Met a Derelict shopkeep closing up shop 2509 | -10/Mines | Destroyed self with Rocket Launcher Last Messages --------------- 02253_ The unstable cave ceiling collapses. 02263_ Acquired 17 matter. 02270_ Searching scrap... 02270_ Found Lgt. Assault Rifle. 02270_ Found Hcp. Storage Unit. 02270_ Found Com. Wheel. 02270_ Found Heat Sink. 02270_ Found 33 Matter. 02271_ Acquired 33 matter. 02273_ The unstable cave ceiling collapses. 02274_ Acquired Com. Wheel. 02280_ K-01 Serf collects debris. 02380_ S-10 Pest destroyed. 02380_ Ion Engine destroyed. 02381_ The unstable cave ceiling collapses. 02382_ Destroyed Flight Unit. 02382_ S-10 Pest destroyed. 02388_ Acquired 1 matter. 02393_ Acquired Lgt. Ion Engine. 02509_ Destroyed Lgt. Ion Engine. Map ----- +----------------------------------------------------+ | ?????? ? ??????????????????????#=#???# #?? | | ??? ?? """ #??????????????????????# #???# #?? | | ???? ? """ ##?????????????????????#!#???# #?? | | ????? # # " ##????????????????????# #???# #?? | | ???### #????????????????????# #???# #?? | | ? # #??????????########### ##### #?? | | ?# # # #??????????# ### ##? | | ## # #???????#### < * #? | | # ####?????# """ [ ## | | # # ## # ##????# ## """ # ### # | | # # # # ##????# ## """ ## #?#!!## | | ??? ## ##????# ## * ######?# ## | | ?????# # # % #????# ######=####??????# ## | | ?????## # # #????# ## ##=###??????## ## | | ?????# # # # ##????# ## # ###????### # | | ???## ## #?????# ###### ######## | | ### # ### ###?????#= | | # # #??????#[###### ####### | | # # # # ######## ###### ###???## | | ### = ## ##?????##### | | ### ########## ## ##?????????# | | ###?## #?######## ## ###????????# # | | #????## ##?# < ########### # | | ##?????####??# # | | # #????????????# #### # | | ## #????????????# @#??## ############ | | ##????????????#s #??## ##??????????? | | ####?????????? s #???## ##???????????? | | ## # ##?????????""" #????### #????????????? | | ?# ###????????# # #??????# #????????????? | | ?# #??????????# ######?????## #?#######????? | | ?# #??????????#######????????????# # #????? | | ?# ###???????????????????????????? # #????? | | ?# #????????????????????????????? #????? | | ?### #????????????????????????????? #????? | | ???# ##########?????####??????????? # ????? | | ???# #????## ##??????????? ?# ##???? | | ???########## #????# ########???????## #???? | | ????????????# #????# # #????????## ##??? | | ????????????# #????# ## #?????????# #### | | ????????????# ###### #?????????# | | ????????????# ##*% !% #?????????## | | ????????????######## ### * #??????????#### | | ???????????????????####?# #?????????????#### | | ????????????????????????########????????????????## | | ?????????????????????????????????????????????????? | | ?????????????????????????????????????????????????? | | | | | | | +----------------------------------------------------+ Best States ------------- Heat Dissipation 25 Energy Generation 10 Energy Capacity 250 Matter Stores 300 Matter Capacity 300 Sight Range 18 Terrain Scan Range 16 Terrain Scan Density 10 Armor Coverage 225 Evasion (%) 44 Item Schematics ----------------- None Robot Schematics ------------------ None Fabricated ------------ Nothing Alien Tech Used ----------------- None Achievements -------------- None Challenges ------------ None Game ------ Seed HeavyDeliveryBrace Manual? 0 Play Time 00:29:23 Cumulative 154.1 hours Start 2022.10.10 @ 19:53:48 End 2022.10.10 @ 20:54:11 Sessions 1 Manual Loads 0 Difficulty Rogue Special Mode None Game No. 115 Rogue 115 Adventurer 0 Explorer 0 Win Type - Total 0 Types 0/0/0/0/0/0/0/0/0 Lore% 45 Gallery% 54 Achievement% 37 Wizard Run 0 Options --------- ASCII 0 Keyboard 1 Movement Numpad Keybinds 0 Fullscreen 1 Font 18/SmallcapsGlow Map View 76x50 Tactical HUD 1 Map Filters NONE Filters NONE Steam 1 RUN: 8328ecf6-2036-4cd7-bfa2-d0eb29f3467d